[Event "FIDE WYCC Girls U14 2023"]
[Site "Montesilvano"]
[Date "2023.11.15"]
[Round "3.27"]
[White "Orazalina, Nursulu"]
[Black "Zadrapova, Amalie"]
[Result "1-0"]
[ECO "B90"]
[WhiteElo "1428"]
[BlackElo "1753"]
[Annotator "NA"]
[PlyCount "169"]
[EventDate "2023.11.13"]
[EventType "swiss"]
[EventCountry "ITA"]
[SourceTitle "playchess.com"]
[Source "ChessBase"]
[SourceQuality "1"]
[TimeControl "40/5400+30:1800+30"]

1. e4 {[%emt 0:00:01]} c5 {[%emt 0:00:06]} 2. Nf3 {[%emt 0:00:04]} d6 {[%emt 0:00:08]} 3. d4 {[%emt 0:00:05]} cxd4 {[%emt 0:00:06]} 4. Nxd4 {[%emt 0:00:05]} Nf6 {[%emt 0:00:12]} 5. Nc3 {[%emt 0:00:05]} a6 {[%emt 0:00:07]} 6. f3 {[%emt 0:00:05]} e6 {[%emt 0:01:10]} 7. Be3 {[%emt 0:00:24]} Be7 {[%emt 0:00:20]} 8. Qd2 {[%emt 0:00:09]} Qc7 {[%emt 0:01:39]} 9. O-O-O {[%emt 0:00:33]} O-O {[%emt 0:00:53]} 10. g4 {[%emt 0:00:17]} Nc6 {[%emt 0:03:05]} 11. g5 {[%emt 0:01:49]} Nh5 {[%emt 0:02:25]} 12. f4 {[%emt 0:02:31]} g6 {[%emt 0:04:02]} 13. Be2 {[%emt 0:01:54]} Ng7 {[%emt 0:01:52]} 14. h4 {[%emt 0:00:32]} b5 {[%emt 0:03:31]} 15. h5 {[%emt 0:05:43]} Bd7 {[%emt 0:06:05]} 16. hxg6 {[%emt 0:00:37]} fxg6 {[%emt 0:00:57]} 17. Rh6 {[%emt 0:08:15]} b4 {[%emt 0:04:32]} 18. Nb1 {[%emt 0:00:27]} Nxd4 {[%emt 0:12:29]} 19. Bxd4 {[%emt 0:04:28]} Rac8 {[%emt 0:01:54]} 20. Bd3 {[%emt 0:08:59]} Bb5 {[%emt 0:05:05]} 21. Bxg7 {[%emt 0:01:54]} Bxd3 {[%emt 0:02:59]} 22. Qxd3 {[%emt 0:00:08]} Kxg7 {[%emt 0:00:41]} 23. Rdh1 {[%emt 0:00:23]} Rh8 {[%emt 0:02:26]} 24. R1h2 {[%emt 0:01:58]} d5 {[%emt 0:08:13]} 25. e5 {[%emt 0:07:09]} Qc4 {[%emt 0:01:38]} 26. Qh3 {[%emt 0:01:03]} Qxf4+ {[%emt 0:04:51]} 27. Nd2 {[%emt 0:00:07]} Rcg8 {[%emt 0:13:10]} 28. Rh4 {[%emt 0:14:52]} Qf5 {[%emt 0:02:26]} 29. Qxf5 {[%emt 0:03:22]} gxf5 {[%emt 0:02:05]} 30. Nf3 {[%emt 0:00:12]} Bc5 {[%emt 0:03:18]} 31. Kd2 {[%emt 0:00:27]} a5 {[%emt 0:01:09]} 32. Ne1 {[%emt 0:03:37]} Bb6 {[%emt 0:02:46]} 33. Nd3 {[%emt 0:00:35]} Bc7 {[%emt 0:00:47]} 34. Ke3 {[%emt 0:04:10]} Re8 {[%emt 0:02:58]} 35. Kf3 {[%emt 0:03:27]} Re7 {[%emt 0:02:54]} 36. Rh6 {[%emt 0:01:33]} Kg8 {[%emt 0:03:36]} 37. Re2 {[%emt 0:03:32]} Bb6 {[%emt 0:00:52]} 38. Nf4 {[%emt 0:00:51]} Bd4 {[%emt 0:01:01]} 39. b3 {[%emt 0:01:45]} Kf7 {[%emt 0:00:30]} 40. Ng6 {[%emt 0:00:00]} hxg6 {[%emt 0:00:00]} 41. Rxh8 {[%emt 0:01:54]} Re8 {[%emt 0:04:22]} 42. Rh7+ {[%emt 0:03:02]} Kg8 {[%emt 0:00:15]} 43. Rc7 {[%emt 0:00:24]} Bb6 {[%emt 0:04:23]} 44. Rb7 {[%emt 0:00:25]} Bd4 {[%emt 0:00:40]} 45. Kf4 {[%emt 0:00:04]} Rc8 {[%emt 0:01:02]} 46. Rh2 {[%emt 0:00:06]} Rc3 {[%emt 0:00:53]} 47. Re2 {[%emt 0:00:40]} Rh3 {[%emt 0:05:47]} 48. Re7 {[%emt 0:00:25]} Rh4+ {[%emt 0:00:35]} 49. Kf3 {[%emt 0:00:19]} Rh3+ {[%emt 0:01:21]} 50. Kg2 {[%emt 0:00:07]} Rh5 {[%emt 0:00:27]} 51. Rxe6 {[%emt 0:00:16]} Rxg5+ {[%emt 0:00:04]} 52. Kf3 {[%emt 0:00:07]} Rg4 {[%emt 0:01:11]} 53. Rg2 {[%emt 0:00:15]} Rxg2 {[%emt 0:00:36]} 54. Kxg2 {[%emt 0:00:05]} Kf7 {[%emt 0:00:15]} 55. Rd6 {[%emt 0:00:07]} Bxe5 {[%emt 0:00:21]} 56. Rxd5 {[%emt 0:00:06]} Kf6 {[%emt 0:01:03]} 57. Rxa5 {[%emt 0:00:11]} Bb2 {[%emt 0:00:19]} 58. Rb5 {[%emt 0:00:35]} Bc3 {[%emt 0:00:43]} 59. Kf3 {[%emt 0:00:15]} g5 {[%emt 0:00:46]} 60. Rd5 {[%emt 0:00:51]} Ke6 {[%emt 0:01:28]} 61. Rd8 {[%emt 0:00:54]} g4+ {[%emt 0:01:39]} 62. Kf4 {[%emt 0:00:37]} Be5+ {[%emt 0:00:08]} 63. Ke3 {[%emt 0:00:05]} Bb2 {[%emt 0:01:27]} 64. Re8+ {[%emt 0:01:37]} Kf6 {[%emt 0:00:28]} 65. Rb8 {[%emt 0:00:44]} Bc3 {[%emt 0:00:37]} 66. Kd3 {[%emt 0:00:16]} Be1 {[%emt 0:01:55]} 67. Ke3 {[%emt 0:01:33]} Bc3 {[%emt 0:00:24]} 68. Ra8 {[%emt 0:01:20]} Bb2 {[%emt 0:00:40]} 69. Ra5 {[%emt 0:03:58]} Kg5 {[%emt 0:01:36]} 70. Rd5 {[%emt 0:00:47]} Bc3 {[%emt 0:01:32]} 71. Rb5 {[%emt 0:00:36]} Kf6 {[%emt 0:00:48]} 72. Rd5 {[%emt 0:01:52]} Kg5 {[%emt 0:00:36]} 73. Rd8 {[%emt 0:00:33]} Bb2 {[%emt 0:01:01]} 74. Rb8 {[%emt 0:03:26]} Bc3 {[%emt 0:00:24]} 75. Kd3 {[%emt 0:00:07]} Be1 {[%emt 0:01:34]} 76. Ra8 {[%emt 0:00:11]} g3 {[%emt 0:00:50]} 77. Ke2 {[%emt 0:00:15]} Bc3 {[%emt 0:00:35]} 78. Kf3 {[%emt 0:00:30]} Be1 {[%emt 0:00:39]} 79. a4 {[%emt 0:00:09]} bxa3 {[%emt 0:00:26]} 80. Rxa3 {[%emt 0:00:04]} f4 {[%emt 0:01:08]} 81. Ra8 {[%emt 0:00:20]} Bd2 {[%emt 0:00:22]} 82. c4 {[%emt 0:00:15]} Kf5 {[%emt 0:00:33]} 83. c5 {[%emt 0:00:18]} Bc3 {[%emt 0:02:57]} 84. c6 {[%emt 0:00:43]} Be5 {[%emt 0:00:21]} 85. Ra5 {[%emt 0:00:07]} 1-0

[Event "FIDE WYCC Girls U14 2023"]
[Site "Montesilvano"]
[Date "2023.11.15"]
[Round "3.28"]
[White "Andries, Alexia"]
[Black "Seyhan, Pelin"]
[Result "1/2-1/2"]
[ECO "E55"]
[WhiteElo "1750"]
[BlackElo "1461"]
[Annotator "NA"]
[PlyCount "125"]
[EventDate "2023.11.13"]
[EventType "swiss"]
[EventCountry "ITA"]
[SourceTitle "playchess.com"]
[Source "ChessBase"]
[SourceQuality "1"]
[TimeControl "40/5400+30:1800+30"]

1. d4 {[%emt 0:00:02]} Nf6 {[%emt 0:00:06]} 2. c4 {[%emt 0:00:03]} e6 {[%emt 0:00:03]} 3. Nc3 {[%emt 0:00:05]} d5 {[%emt 0:00:04]} 4. e3 {[%emt 0:00:04]} Nbd7 {[%emt 0:00:48]} 5. Nf3 {[%emt 0:00:24]} Bb4 {[%emt 0:00:06]} 6. Bd3 {[%emt 0:00:09]} c5 {[%emt 0:01:23]} 7. O-O {[%emt 0:00:10]} dxc4 {[%emt 0:01:38]} 8. Bxc4 {[%emt 0:00:09]} O-O {[%emt 0:01:10]} 9. a3 {[%emt 0:06:37]} Bxc3 {[%emt 0:00:31]} 10. bxc3 {[%emt 0:00:06]} a6 {[%emt 0:00:10]} 11. a4 {[%emt 0:00:18]} Qc7 {[%emt 0:01:35]} 12. Bb3 {[%emt 0:01:57]} Rd8 {[%emt 0:03:34]} 13. Qe2 {[%emt 0:11:52]} b6 {[%emt 0:03:21]} 14. c4 {[%emt 0:04:56]} Bb7 {[%emt 0:00:38]} 15. h3 {[%emt 0:03:14]} Ne4 {[%emt 0:08:47]} 16. Bb2 {[%emt 0:00:32]} Rab8 {[%emt 0:13:18]} 17. Rfd1 {[%emt 0:02:27]} Ndf6 {[%emt 0:11:54]} 18. Ne5 {[%emt 0:04:15]} Ba8 {[%emt 0:02:38]} 19. Rac1 {[%emt 0:03:36]} Qb7 {[%emt 0:02:37]} 20. f3 {[%emt 0:02:57]} Ng3 {[%emt 0:00:33]} 21. Qf2 {[%emt 0:00:10]} Nf5 {[%emt 0:02:46]} 22. Ba3 {[%emt 0:06:07]} Qc7 {[%emt 0:03:53]} 23. Bb2 {[%emt 0:08:42]} Qb7 {[%emt 0:00:18]} 24. Bc3 {[%emt 0:02:53]} Qc7 {[%emt 0:04:00]} 25. Qe1 {[%emt 0:04:30]} a5 {[%emt 0:04:01]} 26. Bc2 {[%emt 0:01:50]} Ne7 {[%emt 0:02:52]} 27. Qh4 {[%emt 0:10:48]} h6 {[%emt 0:06:23]} 28. Rb1 {[%emt 0:09:25]} Ne8 {[%emt 0:07:49]} 29. Qh5 {[%emt 0:04:18]} Nc6 {[%emt 0:01:31]} 30. Nxc6 {[%emt 0:05:11]} Qxc6 {[%emt 0:03:59]} 31. dxc5 {[%emt 0:01:17]} bxc5 {[%emt 0:01:34]} 32. Rxd8 {[%emt 0:01:12]} Rxd8 {[%emt 0:00:07]} 33. Bxa5 {[%emt 0:00:08]} Rc8 {[%emt 0:00:39]} 34. Qe5 {[%emt 0:01:42]} f6 {[%emt 0:01:49]} 35. Qc3 {[%emt 0:00:42]} Nd6 {[%emt 0:00:27]} 36. Rb6 {[%emt 0:00:12]} Qd7 {[%emt 0:01:53]} 37. Qd3 {[%emt 0:00:07]} Bc6 {[%emt 0:00:05]} 38. Bc3 {[%emt 0:01:42]} e5 {[%emt 0:02:31]} 39. a5 {[%emt 0:01:47]} Qe6 {[%emt 0:02:57]} 40. e4 {[%emt 0:00:00]} Kh7 {[%emt 0:00:00]} 41. Bb3 {[%emt 0:01:50]} Nf7 {[%emt 0:04:51]} 42. Qe3 {[%emt 0:03:12]} Qd6 {[%emt 0:01:14]} 43. Bc2 {[%emt 0:09:49]} Ng5 {[%emt 0:06:04]} 44. Ba4 {[%emt 0:03:49]} Qd7 {[%emt 0:00:26]} 45. Bb5 {[%emt 0:00:27]} Ne6 {[%emt 0:03:44]} 46. Qd2 {[%emt 0:02:47]} Bxb5 {[%emt 0:03:34]} 47. cxb5 {[%emt 0:00:18]} Nd4 {[%emt 0:00:19]} 48. a6 {[%emt 0:01:28]} Qf7 {[%emt 0:01:25]} 49. Kh2 {[%emt 0:01:30]} Rd8 {[%emt 0:04:19]} 50. Qb2 {[%emt 0:01:29]} f5 {[%emt 0:02:47]} 51. Rb7 {[%emt 0:00:20]} Qg6 {[%emt 0:01:16]} 52. a7 {[%emt 0:01:21]} Qg5 {[%emt 0:04:04]} 53. Be1 {[%emt 0:00:49]} Qf4+ {[%emt 0:00:25]} 54. Bg3 {[%emt 0:00:16]} Nxf3+ {[%emt 0:00:40]} 55. gxf3 {[%emt 0:00:05]} Rd2+ {[%emt 0:00:07]} 56. Qxd2 {[%emt 0:00:04]} Qxd2+ {[%emt 0:00:01]} 57. Kg1 {[%emt 0:00:10]} Qd1+ {[%emt 0:02:09]} 58. Kg2 {[%emt 0:00:07]} fxe4 {[%emt 0:02:12]} 59. Rxg7+ {[%emt 0:01:50]} Kxg7 {[%emt 0:00:07]} 60. Bxe5+ {[%emt 0:00:39]} Kf7 {[%emt 0:01:27]} 61. a8=Q {[%emt 0:00:05]} Qxf3+ {[%emt 0:00:06]} 62. Kh2 {[%emt 0:00:35]} Qf2+ {[%emt 0:00:09]} 63. Kh1 {[%emt 0:00:07]} 1/2-1/2

[Event "FIDE WYCC Girls U14 2023"]
[Site "Montesilvano"]
[Date "2023.11.15"]
[Round "3.29"]
[White "Caku, Kler"]
[Black "Comarnitcaia, Ecaterina"]
[Result "1/2-1/2"]
[ECO "C42"]
[WhiteElo "1740"]
[BlackElo "1424"]
[Annotator "NA"]
[PlyCount "87"]
[EventDate "2023.11.13"]
[EventType "swiss"]
[EventCountry "ITA"]
[SourceTitle "playchess.com"]
[Source "ChessBase"]
[SourceQuality "1"]
[TimeControl "40/5400+30:1800+30"]

1. e4 {[%emt 0:00:03]} e5 {[%emt 0:00:11]} 2. Nf3 {[%emt 0:00:07]} Nf6 {[%emt 0:00:19]} 3. Nxe5 {[%emt 0:00:17]} d6 {[%emt 0:00:11]} 4. Nf3 {[%emt 0:00:12]} Nxe4 {[%emt 0:00:10]} 5. c3 {[%emt 0:00:31]} d5 {[%emt 0:00:24]} 6. d3 {[%emt 0:01:06]} Nf6 {[%emt 0:00:43]} 7. Be2 {[%emt 0:00:58]} Bd6 {[%emt 0:03:18]} 8. O-O {[%emt 0:00:43]} O-O {[%emt 0:00:15]} 9. Bg5 {[%emt 0:01:17]} h6 {[%emt 0:02:36]} 10. Bh4 {[%emt 0:00:09]} Be6 {[%emt 0:09:29]} 11. Re1 {[%emt 0:04:00]} Nbd7 {[%emt 0:05:53]} 12. Nbd2 {[%emt 0:01:20]} Re8 {[%emt 0:00:39]} 13. Nf1 {[%emt 0:00:43]} Nf8 {[%emt 0:00:17]} 14. Bg3 {[%emt 0:01:59]} Ng6 {[%emt 0:07:23]} 15. Qd2 {[%emt 0:01:33]} Nh5 {[%emt 0:01:31]} 16. Bxd6 {[%emt 0:04:18]} Qxd6 {[%emt 0:00:07]} 17. Nd4 {[%emt 0:03:02]} Nhf4 {[%emt 0:04:18]} 18. Nxe6 {[%emt 0:09:31]} Nxe2+ {[%emt 0:01:03]} 19. Rxe2 {[%emt 0:05:52]} Rxe6 {[%emt 0:00:29]} 20. Rxe6 {[%emt 0:00:15]} Qxe6 {[%emt 0:00:41]} 21. Re1 {[%emt 0:00:23]} Qd7 {[%emt 0:00:44]} 22. Qe3 {[%emt 0:01:52]} b6 {[%emt 0:02:43]} 23. Ng3 {[%emt 0:01:24]} Kf8 {[%emt 0:01:44]} 24. Kf1 {[%emt 0:04:24]} Re8 {[%emt 0:00:50]} 25. Qxe8+ {[%emt 0:00:17]} Qxe8 {[%emt 0:00:04]} 26. Rxe8+ {[%emt 0:00:08]} Kxe8 {[%emt 0:00:02]} 27. Nf5 {[%emt 0:00:15]} Kf8 {[%emt 0:00:23]} 28. g3 {[%emt 0:00:48]} Ne7 {[%emt 0:00:29]} 29. Nd4 {[%emt 0:01:32]} c5 {[%emt 0:00:22]} 30. Nb5 {[%emt 0:00:12]} Nc6 {[%emt 0:00:25]} 31. Ke2 {[%emt 0:02:25]} Ke7 {[%emt 0:00:17]} 32. Nc7 {[%emt 0:01:01]} d4 {[%emt 0:00:58]} 33. f4 {[%emt 0:03:34]} g6 {[%emt 0:01:47]} 34. Kf3 {[%emt 0:01:03]} Kd7 {[%emt 0:02:51]} 35. Nd5 {[%emt 0:01:11]} Ke6 {[%emt 0:00:21]} 36. Nc7+ {[%emt 0:03:24]} Kd7 {[%emt 0:00:05]} 37. Nb5 {[%emt 0:00:20]} a6 {[%emt 0:03:49]} 38. Na3 {[%emt 0:00:08]} b5 {[%emt 0:01:07]} 39. Nc2 {[%emt 0:01:02]} Ke6 {[%emt 0:00:36]} 40. cxd4 {[%emt 0:00:00]} cxd4 {[%emt 0:00:00]} 41. g4 {[%emt 0:02:52]} Kd5 {[%emt 0:02:07]} 42. a3 {[%emt 0:01:59]} a5 {[%emt 0:00:21]} 43. b4 {[%emt 0:14:25]} a4 {[%emt 0:00:50]} 44. Ke2 {[%emt 0:00:55]} 1/2-1/2

[Event "FIDE WYCC Girls U14 2023"]
[Site "Montesilvano"]
[Date "2023.11.15"]
[Round "3.30"]
[White "Sodgerelt Naranbold"]
[Black "Qi, Jenny"]
[Result "1/2-1/2"]
[ECO "B90"]
[WhiteElo "1419"]
[BlackElo "1737"]
[Annotator "NA"]
[PlyCount "170"]
[EventDate "2023.11.13"]
[EventType "swiss"]
[EventCountry "ITA"]
[SourceTitle "playchess.com"]
[Source "ChessBase"]
[SourceQuality "1"]
[TimeControl "40/5400+30:1800+30"]

1. e4 {[%emt 0:01:54]} c5 {[%emt 0:00:10]} 2. Nf3 {[%emt 0:01:32]} d6 {[%emt 0:00:09]} 3. d4 {[%emt 0:01:32]} cxd4 {[%emt 0:00:16]} 4. Nxd4 {[%emt 0:01:28]} Nf6 {[%emt 0:00:24]} 5. Nc3 {[%emt 0:01:32]} a6 {[%emt 0:02:31]} 6. Nb3 {[%emt 0:01:06]} g6 {[%emt 0:00:41]} 7. Be2 {[%emt 0:01:13]} Bg7 {[%emt 0:01:03]} 8. Be3 {[%emt 0:01:27]} Nbd7 {[%emt 0:02:28]} 9. g4 {[%emt 0:03:51]} h5 {[%emt 0:02:47]} 10. g5 {[%emt 0:01:44]} Ng4 {[%emt 0:00:41]} 11. Qd2 {[%emt 0:06:53]} Nxe3 {[%emt 0:12:35]} 12. Qxe3 {[%emt 0:00:08]} O-O {[%emt 0:04:46]} 13. f4 {[%emt 0:00:52]} b5 {[%emt 0:04:06]} 14. O-O-O {[%emt 0:01:24]} Bb7 {[%emt 0:09:00]} 15. Rhf1 {[%emt 0:13:00]} Qc7 {[%emt 0:04:29]} 16. Nd5 {[%emt 0:00:49]} Bxd5 {[%emt 0:04:23]} 17. exd5 {[%emt 0:00:23]} Rfc8 {[%emt 0:04:34]} 18. Qe4 {[%emt 0:02:55]} Nb6 {[%emt 0:09:15]} 19. f5 {[%emt 0:03:45]} Na4 {[%emt 0:14:25]} 20. Nd4 {[%emt 0:01:57]} Nc5 {[%emt 0:02:04]} 21. Qf3 {[%emt 0:05:24]} Bxd4 {[%emt 0:11:19]} 22. Rxd4 {[%emt 0:00:01]} Ne6 {[%emt 0:00:55]} 23. Rd2 {[%emt 0:00:01]} Nd4 {[%emt 0:00:42]} 24. Qd3 {[%emt 0:02:44]} Nxf5 {[%emt 0:00:36]} 25. Bxh5 {[%emt 0:00:17]} Qc4 {[%emt 0:00:37]} 26. Qxc4 {[%emt 0:02:04]} Rxc4 {[%emt 0:00:08]} 27. Be2 {[%emt 0:00:28]} Rc7 {[%emt 0:00:19]} 28. Bd3 {[%emt 0:01:27]} Ne3 {[%emt 0:01:30]} 29. Re1 {[%emt 0:01:47]} Ng4 {[%emt 0:01:00]} 30. h4 {[%emt 0:03:36]} Ne5 {[%emt 0:01:44]} 31. Re3 {[%emt 0:00:26]} Rc5 {[%emt 0:01:34]} 32. Be2 {[%emt 0:01:04]} Rac8 {[%emt 0:00:45]} 33. Rh3 {[%emt 0:03:27]} Kg7 {[%emt 0:01:07]} 34. a4 {[%emt 0:06:58]} Nc4 {[%emt 0:01:34]} 35. Bxc4 {[%emt 0:01:21]} Rxc4 {[%emt 0:00:05]} 36. axb5 {[%emt 0:00:11]} axb5 {[%emt 0:00:07]} 37. b3 {[%emt 0:09:02]} Re4 {[%emt 0:01:03]} 38. Kb2 {[%emt 0:02:51]} Rh8 {[%emt 0:00:23]} 39. Rdh2 {[%emt 0:01:06]} Re5 {[%emt 0:00:35]} 40. c4 {[%emt 0:00:00]} bxc4 {[%emt 0:00:00]} 41. bxc4 {[%emt 0:00:30]} Re4 {[%emt 0:00:41]} 42. Kb3 {[%emt 0:06:37]} Rb8+ {[%emt 0:00:19]} 43. Kc3 {[%emt 0:00:01]} Rc8 {[%emt 0:00:32]} 44. h5 {[%emt 0:00:05]} Rexc4+ {[%emt 0:06:35]} 45. Kb3 {[%emt 0:00:08]} gxh5 {[%emt 0:02:49]} 46. Rxh5 {[%emt 0:00:01]} R4c7 {[%emt 0:01:46]} 47. Rh7+ {[%emt 0:00:35]} Kg6 {[%emt 0:00:09]} 48. R2h6+ {[%emt 0:00:14]} Kf5 {[%emt 0:00:20]} 49. Rxf7+ {[%emt 0:01:20]} Kxg5 {[%emt 0:00:07]} 50. Rh3 {[%emt 0:00:01]} Rb7+ {[%emt 0:00:20]} 51. Ka2 {[%emt 0:00:05]} Ra8+ {[%emt 0:00:12]} 52. Ra3 {[%emt 0:00:00]} Rxa3+ {[%emt 0:00:46]} 53. Kxa3 {[%emt 0:00:01]} Kg6 {[%emt 0:00:12]} 54. Rf1 {[%emt 0:00:25]} Rb5 {[%emt 0:00:27]} 55. Rd1 {[%emt 0:00:06]} Kf6 {[%emt 0:00:32]} 56. Ka4 {[%emt 0:00:10]} Rc5 {[%emt 0:00:10]} 57. Kb4 {[%emt 0:00:11]} Ke5 58. Re1+ Kxd5 {[%emt 0:02:02]} 59. Rxe7 {[%emt 0:00:12]} Rc1 {[%emt 0:00:38]} 60. Rh7 {[%emt 0:00:18]} Re1 {[%emt 0:06:41]} 61. Kc3 {[%emt 0:00:27]} Re3+ {[%emt 0:01:25]} 62. Kd2 {[%emt 0:00:02]} Rg3 {[%emt 0:01:01]} 63. Rh5+ {[%emt 0:00:55]} Ke4 {[%emt 0:00:19]} 64. Rh4+ {[%emt 0:00:13]} Kf5 {[%emt 0:00:18]} 65. Rh5+ {[%emt 0:00:23]} Ke6 {[%emt 0:01:18]} 66. Rh6+ {[%emt 0:00:08]} Kd7 {[%emt 0:00:04]} 67. Rh2 {[%emt 0:01:49]} Kc6 {[%emt 0:00:20]} 68. Re2 {[%emt 0:00:16]} Kc5 {[%emt 0:00:18]} 69. Re4 {[%emt 0:01:48]} d5 {[%emt 0:00:33]} 70. Rh4 {[%emt 0:00:02]} d4 {[%emt 0:02:26]} 71. Rh8 {[%emt 0:00:07]} Rg6 {[%emt 0:01:30]} 72. Rc8+ {[%emt 0:00:11]} Rc6 {[%emt 0:00:24]} 73. Rxc6+ {[%emt 0:00:19]} Kxc6 {[%emt 0:00:06]} 74. Kd3 {[%emt 0:00:04]} Kd5 {[%emt 0:00:07]} 75. Kd2 {[%emt 0:00:01]} Kc4 {[%emt 0:00:21]} 76. Kc2 {[%emt 0:00:01]} d3+ {[%emt 0:00:09]} 77. Kd2 {[%emt 0:00:01]} Kd4 {[%emt 0:00:12]} 78. Kd1 {[%emt 0:00:04]} Ke3 {[%emt 0:05:01]} 79. Ke1 {[%emt 0:00:06]} Kf3 {[%emt 0:00:42]} 80. Kd2 {[%emt 0:00:29]} Ke4 {[%emt 0:00:05]} 81. Kd1 {[%emt 0:00:07]} Kd5 {[%emt 0:00:41]} 82. Kd2 {[%emt 0:00:08]} Kc4 {[%emt 0:01:04]} 83. Kd1 {[%emt 0:00:03]} Kc3 {[%emt 0:01:14]} 84. Kc1 {[%emt 0:00:06]} d2+ {[%emt 0:00:21]} 85. Kd1 {[%emt 0:00:02]} Kd3 1/2-1/2

[Event "FIDE WYCC Girls U14 2023"]
[Site "Montesilvano"]
[Date "2023.11.15"]
[Round "3.31"]
[White "Maral Altankhuyag"]
[Black "Li, Anna Sofie"]
[Result "1-0"]
[ECO "D02"]
[WhiteElo "1398"]
[BlackElo "1722"]
[Annotator "NA"]
[PlyCount "31"]
[EventDate "2023.11.13"]
[EventType "swiss"]
[EventCountry "ITA"]
[SourceTitle "playchess.com"]
[Source "ChessBase"]
[SourceQuality "1"]
[TimeControl "40/5400+30:1800+30"]

1. d4 {[%emt 0:00:11]} d5 {[%emt 0:00:13]} 2. Nf3 {[%emt 0:00:13]} Nf6 {[%emt 0:00:08]} 3. g3 {[%emt 0:00:11]} Bf5 {[%emt 0:01:55]} 4. Bg2 {[%emt 0:00:43]} e6 {[%emt 0:00:23]} 5. O-O {[%emt 0:01:44]} Bd6 {[%emt 0:01:40]} 6. Nbd2 {[%emt 0:02:13]} c5 {[%emt 0:01:35]} 7. c4 {[%emt 0:03:17]} Nc6 {[%emt 0:03:34]} 8. cxd5 {[%emt 0:01:04]} Nb4 {[%emt 0:03:32]} 9. e4 {[%emt 0:12:36]} Nxe4 {[%emt 0:02:05]} 10. dxe6 {[%emt 0:05:40]} Nxd2 {[%emt 0:04:41]} 11. exf7+ {[%emt 0:04:42]} Kxf7 {[%emt 0:05:32]} 12. Bxd2 {[%emt 0:02:12]} Bd3 {[%emt 0:08:54]} 13. Ng5+ {[%emt 0:03:13]} Ke8 {[%emt 0:07:41]} 14. Re1+ {[%emt 0:01:30]} Kd7 {[%emt 0:06:38]} 15. Qg4+ {[%emt 0:00:38]} Kc7 {[%emt 0:01:44]} 16. Ne6+ {[%emt 0:00:14]} 1-0

[Event "FIDE WYCC Girls U14 2023"]
[Site "Montesilvano"]
[Date "2023.11.15"]
[Round "3.32"]
[White "Jankovic, Tamara"]
[Black "Bajic, Marija"]
[Result "1-0"]
[ECO "C54"]
[WhiteElo "1711"]
[BlackElo "1412"]
[Annotator "NA"]
[PlyCount "45"]
[EventDate "2023.11.13"]
[EventType "swiss"]
[EventCountry "ITA"]
[SourceTitle "playchess.com"]
[Source "ChessBase"]
[SourceQuality "1"]
[TimeControl "40/5400+30:1800+30"]

1. e4 {[%emt 0:00:03]} e5 {[%emt 0:00:08]} 2. Nf3 {[%emt 0:00:06]} Nc6 {[%emt 0:00:12]} 3. Bc4 {[%emt 0:00:05]} Bc5 {[%emt 0:00:16]} 4. c3 {[%emt 0:00:07]} Nf6 {[%emt 0:00:16]} 5. d3 {[%emt 0:00:05]} O-O {[%emt 0:00:33]} 6. O-O {[%emt 0:00:07]} a6 {[%emt 0:00:34]} 7. Bb3 {[%emt 0:00:05]} d6 {[%emt 0:00:26]} 8. h3 {[%emt 0:00:07]} h6 {[%emt 0:00:21]} 9. Nbd2 {[%emt 0:00:05]} Re8 {[%emt 0:00:30]} 10. Re1 {[%emt 0:00:05]} Be6 {[%emt 0:00:24]} 11. Nf1 {[%emt 0:00:08]} d5 {[%emt 0:01:02]} 12. exd5 {[%emt 0:02:27]} Bxd5 {[%emt 0:02:59]} 13. Ng3 {[%emt 0:03:37]} Ba7 {[%emt 0:02:42]} 14. Be3 {[%emt 0:02:48]} Bxe3 {[%emt 0:04:30]} 15. Rxe3 {[%emt 0:01:32]} Qd6 {[%emt 0:02:50]} 16. Bc2 {[%emt 0:04:07]} Rad8 {[%emt 0:02:47]} 17. Nf5 {[%emt 0:08:28]} Qd7 {[%emt 0:04:16]} 18. N3h4 {[%emt 0:05:14]} b5 {[%emt 0:06:52]} 19. Rg3 {[%emt 0:03:48]} Kh8 {[%emt 0:07:23]} 20. Nxg7 {[%emt 0:04:30]} Rg8 {[%emt 0:03:30]} 21. Qd2 {[%emt 0:03:47]} Kh7 {[%emt 0:03:11]} 22. Nhf5 {[%emt 0:01:06]} Ne7 {[%emt 0:04:29]} 23. Qxh6# 1-0

[Event "FIDE WYCC Girls U14 2023"]
[Site "Montesilvano"]
[Date "2023.11.15"]
[Round "3.33"]
[White "Michalska, Lena"]
[Black "Poetscher, Katharina"]
[Result "1-0"]
[ECO "E73"]
[WhiteElo "1640"]
[BlackElo "1345"]
[Annotator "NA"]
[PlyCount "79"]
[EventDate "2023.11.13"]
[EventType "swiss"]
[EventCountry "ITA"]
[SourceTitle "playchess.com"]
[Source "ChessBase"]
[SourceQuality "1"]
[TimeControl "40/5400+30:1800+30"]

1. d4 {[%emt 0:00:01]} Nf6 {[%emt 0:00:06]} 2. c4 {[%emt 0:00:06]} g6 {[%emt 0:00:04]} 3. Nc3 {[%emt 0:00:08]} Bg7 {[%emt 0:00:05]} 4. e4 {[%emt 0:00:06]} d6 {[%emt 0:00:04]} 5. Be2 {[%emt 0:00:12]} O-O {[%emt 0:00:06]} 6. Bg5 {[%emt 0:00:23]} h6 {[%emt 0:00:06]} 7. Be3 {[%emt 0:00:04]} c5 {[%emt 0:09:38]} 8. dxc5 {[%emt 0:07:02]} Qa5 {[%emt 0:00:16]} 9. cxd6 {[%emt 0:26:36]} Nxe4 {[%emt 0:00:20]} 10. dxe7 {[%emt 0:00:05]} Bxc3+ {[%emt 0:00:14]} 11. bxc3 {[%emt 0:00:06]} Qxc3+ {[%emt 0:00:07]} 12. Kf1 {[%emt 0:00:29]} Re8 {[%emt 0:00:55]} 13. Bxh6 {[%emt 0:15:29]} g5 {[%emt 0:05:39]} 14. Nf3 {[%emt 0:01:18]} Qf6 {[%emt 0:01:46]} 15. Qd4 {[%emt 0:16:58]} Nd2+ {[%emt 0:03:17]} 16. Qxd2 {[%emt 0:00:02]} Qxa1+ {[%emt 0:00:14]} 17. Ne1 {[%emt 0:00:04]} Qe5 {[%emt 0:03:06]} 18. Bxg5 {[%emt 0:03:02]} Be6 {[%emt 0:02:02]} 19. h4 {[%emt 0:04:51]} Nc6 {[%emt 0:01:43]} 20. h5 {[%emt 0:04:43]} Nd4 {[%emt 0:02:10]} 21. Bd3 {[%emt 0:01:19]} Bf5 {[%emt 0:03:18]} 22. h6 {[%emt 0:05:59]} f6 {[%emt 0:02:56]} 23. h7+ {[%emt 0:02:30]} Kh8 {[%emt 0:00:09]} 24. Be3 {[%emt 0:03:14]} Rxe7 {[%emt 0:04:15]} 25. Qb2 {[%emt 0:02:41]} Rd8 {[%emt 0:03:19]} 26. Qb1 {[%emt 0:02:33]} Be4 {[%emt 0:02:10]} 27. Rh4 {[%emt 0:01:01]} f5 {[%emt 0:00:31]} 28. Bxe4 {[%emt 0:01:11]} fxe4 {[%emt 0:00:16]} 29. Qb2 {[%emt 0:00:59]} Nf5 {[%emt 0:01:33]} 30. Qxe5+ {[%emt 0:00:49]} Rxe5 {[%emt 0:00:09]} 31. Bg5 {[%emt 0:00:08]} Nxh4 {[%emt 0:01:15]} 32. Bxd8 {[%emt 0:00:02]} Rh5 {[%emt 0:00:11]} 33. Bf6+ {[%emt 0:01:13]} Kxh7 {[%emt 0:00:14]} 34. g4 {[%emt 0:00:04]} Rh6 {[%emt 0:01:05]} 35. g5 {[%emt 0:00:35]} Rh5 {[%emt 0:00:20]} 36. Ke2 {[%emt 0:00:53]} Nf5 {[%emt 0:00:45]} 37. Ng2 {[%emt 0:00:36]} Rh1 {[%emt 0:01:19]} 38. Ne3 {[%emt 0:00:23]} Kg6 {[%emt 0:02:18]} 39. Nd5 {[%emt 0:00:20]} Ra1 {[%emt 0:00:46]} 40. Bxa1 {[%emt 0:00:00]} 1-0